Workbook

Sheet Title
M7: 2059
A25: Image credit: Bill Jelen / We Report Space

Sheet RegularTrackChanges
A1: Input Cells | C1: Formula Cells
A2: 1 | C2: =A2*2 -> 2 | D2: =C2+1 -> 3 | E2: =D2+1 -> 4 | F2: 5 | G2: 6 | H2: 7 | I2: 8 | J2: 9
A3: 2 | C3: =A3*2 -> 4 | D3: =C3+1 -> 5 | E3: 6 | F3: 7 | G3: 8 | H3: 9 | I3: 10 | J3: =J2+1 -> 10
A4: 3 | C4: 6 | D4: =C4+1 -> 7 | E4: 8 | F4: 9 | G4: 10 | H4: 11 | I4: 12 | J4: =J3+1 -> 11
A5: 4 | C5: 8 | D5: =C5+1 -> 9 | E5: 10 | F5: 11 | G5: 12 | H5: 13 | I5: 14 | J5: 12
C6: =C2+C4 -> 8 | D6: =D4+1 -> 8 | E6: 9 | F6: 10 | G6: 11 | H6: 12 | I6: =AVERAGE(I5,H4) -> 12.5 | J6: 13
C7: =C3+C5 -> 12 | D7: =D6+1 -> 9 | E7: 10 | F7: 11 | G7: 12 | H7: 13 | I7: =AVERAGE(I6,H5) -> 12.75 | J7: 14
C8: 14 | D8: =D7+1 -> 10 | E8: 11 | F8: 12 | G8: 13 | H8: 14 | I8: =AVERAGE(I7,H6) -> 12.375 | J8: 15
C9: 20 | D9: =D2+1 -> 4 | E9: =E2+1 -> 5 | F9: 6 | G9: 7 | H9: 8 | I9: =AVERAGE(I8,H7) -> 12.6875 | J9: 16
C10: 22 | D10: =D3+1 -> 6 | E10: 7 | F10: 8 | G10: 9 | H10: 10 | I10: =AVERAGE(I9,H8) -> 13.34375 | J10: 17
C11: 32 | D11: 8 | E11: 9 | F11: 10 | G11: 11 | H11: 12 | I11: 10.671875 | J11: 18
C12: 36 | D12: 10 | E12: 11 | F12: 12 | G12: 13 | H12: 14 | I12: 10.3359375 | J12: 19
C13: 52 | D13: 9 | E13: 10 | F13: 11 | G13: 12 | H13: 13 | I13: 11.16796875 | J13: 20
C14: 58 | D14: 10 | E14: 11 | F14: 12 | G14: 13 | H14: 14 | I14: 12.58398438 | J14: 21
C15: 84 | D15: 11 | E15: 12 | F15: 13 | G15: 14 | H15: 15 | I15: 12.79199219 | J15: 22
C16: 94 | D16: =1+E16 -> 29 | E16: 28 | F16: 27 | G16: 26 | H16: 25 | I16: =1+J16 -> 24 | J16: 23

Sheet Sheet1
A1: Input Cells | C1: Formula Cells
A2: 1 | C2: =A2*2 -> 2 | D2: =C2+1 -> 3 | E2: =D2+1 -> 4 | F2: 5 | G2: 6 | H2: 7 | I2: 8 | J2: 9
A3: 2 | C3: =A3*2 -> 4 | D3: =C3+1 -> 5 | E3: 6 | F3: 7 | G3: 8 | H3: 9 | I3: 10 | J3: =J2+1 -> 10
A4: 3 | C4: 6 | D4: =C4+1 -> 7 | E4: 8 | F4: 9 | G4: 10 | H4: 11 | I4: 12 | J4: =J3+1 -> 11
A5: 4 | C5: 8 | D5: =C5+1 -> 9 | E5: 10 | F5: 11 | G5: 12 | H5: 13 | I5: 14 | J5: 12
C6: =C2+C4 -> 8 | D6: =D4+1 -> 8 | E6: 9 | F6: 10 | G6: 11 | H6: 12 | I6: =AVERAGE(I5,H4) -> 12.5 | J6: 13
C7: =C3+C5 -> 12 | D7: =D6+1 -> 9 | E7: 10 | F7: 11 | G7: 12 | H7: 13 | I7: =AVERAGE(I6,H5) -> 12.75 | J7: 14
C8: 14 | D8: =D7+1 -> 10 | E8: 11 | F8: 12 | G8: 13 | H8: 14 | I8: =AVERAGE(I7,H6) -> 12.375 | J8: 15
C9: 20 | D9: =D2+1 -> 4 | E9: =E2+1 -> 5 | F9: 6 | G9: 7 | H9: 8 | I9: =AVERAGE(I8,H7) -> 12.6875 | J9: 16
C10: 22 | D10: =D3+1 -> 6 | E10: 7 | F10: 8 | G10: 9 | H10: 10 | I10: =AVERAGE(I9,H8) -> 13.34375 | J10: 17
C11: 32 | D11: =D4+1 -> 8 | E11: 9 | F11: 10 | G11: 11 | H11: 12 | I11: 10.671875 | J11: 18
C12: 36 | D12: =D5+1 -> 10 | E12: 11 | F12: 12 | G12: 13 | H12: 14 | I12: 10.3359375 | J12: 19
C13: 52 | D13: =D6+1 -> 9 | E13: 10 | F13: 11 | G13: 12 | H13: 13 | I13: 11.16796875 | J13: 20
C14: 58 | D14: =D7+1 -> 10 | E14: 11 | F14: 12 | G14: 13 | H14: 14 | I14: 12.58398438 | J14: 21
C15: 84 | D15: =D8+1 -> 11 | E15: 12 | F15: 13 | G15: 14 | H15: 15 | I15: 12.79199219 | J15: 22
C16: 94 | D16: =1+E16 -> 29 | E16: 28 | F16: 27 | G16: 26 | H16: 25 | I16: =1+J16 -> 24 | J16: 23

Sheet MoreFormulaCells
D1: Formula Cells
D3: =Sheet1!D$3 -> 5 | E3: =Sheet1!E$3 -> 6 | F3: =Sheet1!F$3 -> 7 | G3: =Sheet1!G$3 -> 8 | H3: =Sheet1!H$3 -> 9 | I3: =Sheet1!I$3 -> 10 | J3: =Sheet1!J$3 -> 10
D4: =Sheet1!D$3 -> 5 | E4: =Sheet1!E$3 -> 6 | F4: =Sheet1!F$3 -> 7 | G4: =Sheet1!G$3 -> 8 | H4: =Sheet1!H$3 -> 9 | I4: =Sheet1!I$3 -> 10 | J4: =Sheet1!J$3 -> 10
D5: =Sheet1!D$3 -> 5 | E5: =Sheet1!E$3 -> 6 | F5: =Sheet1!F$3 -> 7 | G5: =Sheet1!G$3 -> 8 | H5: =Sheet1!H$3 -> 9 | I5: =Sheet1!I$3 -> 10 | J5: =Sheet1!J$3 -> 10
D6: =Sheet1!D$3 -> 5 | E6: =Sheet1!E$3 -> 6 | F6: =Sheet1!F$3 -> 7 | G6: =Sheet1!G$3 -> 8 | H6: =Sheet1!H$3 -> 9 | I6: =Sheet1!I$3 -> 10 | J6: =Sheet1!J$3 -> 10
D7: =Sheet1!D$3 -> 5 | E7: =Sheet1!E$3 -> 6 | F7: =Sheet1!F$3 -> 7 | G7: =Sheet1!G$3 -> 8 | H7: =Sheet1!H$3 -> 9 | I7: =Sheet1!I$3 -> 10 | J7: =Sheet1!J$3 -> 10
D8: =Sheet1!D$3 -> 5 | E8: =Sheet1!E$3 -> 6 | F8: =Sheet1!F$3 -> 7 | G8: =Sheet1!G$3 -> 8 | H8: =Sheet1!H$3 -> 9 | I8: =Sheet1!I$3 -> 10 | J8: =Sheet1!J$3 -> 10
D9: =Sheet1!C11 -> 32 | E9: =Sheet1!D11 -> 8 | F9: =Sheet1!E11 -> 9 | G9: =Sheet1!F11 -> 10 | H9: =Sheet1!G11 -> 11 | I9: =Sheet1!H11 -> 12 | J9: =Sheet1!I11 -> 10.671875
D10: =Sheet1!C12 -> 36 | E10: =Sheet1!D12 -> 10 | F10: =Sheet1!E12 -> 11 | G10: =Sheet1!F12 -> 12 | H10: =Sheet1!G12 -> 13 | I10: =Sheet1!H12 -> 14 | J10: =Sheet1!I12 -> 10.3359375
D11: =Sheet1!C13 -> 52 | E11: =Sheet1!D13 -> 9 | F11: =Sheet1!E13 -> 10 | G11: =Sheet1!F13 -> 11 | H11: =Sheet1!G13 -> 12 | I11: =Sheet1!H13 -> 13 | J11: =Sheet1!I13 -> 11.16796875
D12: =Sheet1!D$3 -> 5 | E12: =Sheet1!E$3 -> 6 | F12: =Sheet1!F$3 -> 7 | G12: =Sheet1!G$3 -> 8 | H12: =Sheet1!H$3 -> 9 | I12: =Sheet1!I$3 -> 10 | J12: =Sheet1!J$3 -> 10
D13: =Sheet1!D$3 -> 5 | E13: =Sheet1!E$3 -> 6 | F13: =Sheet1!F$3 -> 7 | G13: =Sheet1!G$3 -> 8 | H13: =Sheet1!H$3 -> 9 | I13: =Sheet1!I$3 -> 10 | J13: =Sheet1!J$3 -> 10
D14: =Sheet1!D$3 -> 5 | E14: =Sheet1!E$3 -> 6 | F14: =Sheet1!F$3 -> 7 | G14: =Sheet1!G$3 -> 8 | H14: =Sheet1!H$3 -> 9 | I14: =Sheet1!I$3 -> 10 | J14: =Sheet1!J$3 -> 10
D15: =Sheet1!D$3 -> 5 | E15: =Sheet1!E$3 -> 6 | F15: =Sheet1!F$3 -> 7 | G15: =Sheet1!G$3 -> 8 | H15: =Sheet1!H$3 -> 9 | I15: =Sheet1!I$3 -> 10 | J15: =Sheet1!J$3 -> 10
D16: =Sheet1!D$3 -> 5 | E16: =Sheet1!E$3 -> 6 | F16: =Sheet1!F$3 -> 7 | G16: =Sheet1!G$3 -> 8 | H16: =Sheet1!H$3 -> 9 | I16: =Sheet1!I$3 -> 10 | J16: =Sheet1!J$3 -> 10

Sheet Recap
B2: Track changes in Excel is a little bizarre.
B3: Goal is to track what formula cells in Excel change.
B4: Save As to save workbook as XLSM.
B5: Change Macro Security.
B6: Record a macro to figure out the code to set up conditional formatting for numbers not equal to 2.
B7: Choose the Formatting that you want.
B8: Record another macro to learn how to remove CF from worksheet.
B9: In the macro, add a loop for each worksheet.
B10: Add an IF statement to prevent it from running on Title.
B11: Add a loop to check each formula cell.
B12: Add Conditional Formatting to see if cell <> value at time macro runs.
B13: Go back to Excel.
B14: Add a shape. Assign the macro to the shape.
B15: Click the Shape to Run the Macro.
B16: Bonus Tip: Dragging a VBA module to a new workbook.

Sheet ShowTrackChanges
A1: Input Cells | C1: Formula Cells
A2: 1 | C2: =A2*2 -> 2 | D2: =C2+1 -> 3 | E2: =D2+1 -> 4 | F2: 5 | G2: 6 | H2: 7 | I2: 8 | J2: 9
A3: 22 | C3: =A3*2 -> 44 | D3: =C3+1 -> 45 | E3: 46 | F3: 47 | G3: 48 | H3: 49 | I3: 50 | J3: =J2+1 -> 10
A4: 3 | C4: 6 | D4: =C4+1 -> 7 | E4: 8 | F4: 9 | G4: 10 | H4: 11 | I4: 12 | J4: =J3+1 -> 11
A5: 0.4 | C5: 0.8 | D5: =C5+1 -> 1.8 | E5: 2.8 | F5: 3.8 | G5: 4.8 | H5: 5.8 | I5: 6.8 | J5: 12
C6: =C2+C4 -> 8 | D6: =D4+1 -> 8 | E6: 9 | F6: 10 | G6: 11 | H6: 12 | I6: =AVERAGE(I5,H4) -> 8.9 | J6: 13
C7: =C3+C5 -> 44.8 | D7: =D6+1 -> 9 | E7: 10 | F7: 11 | G7: 12 | H7: 13 | I7: =AVERAGE(I6,H5) -> 7.35 | J7: 14
C9: =C4+C6 -> 14 | D9: =D7+1 -> 10 | E9: 11 | F9: 12 | G9: 13 | H9: 14 | I9: =AVERAGE(I7,H6) -> 9.675 | J9: =J7+1 -> 15
C10: =C5+C7 -> 45.6 | D10: =D2+1 -> 4 | E10: =E2+1 -> 5 | F10: 6 | G10: 7 | H10: 8 | I10: =AVERAGE(I9,H7) -> 11.3375 | J10: 16
C11: =C6+C9 -> 22 | D11: 46 | E11: =E3+1 -> 47 | F11: 48 | G11: 49 | H11: 50 | I11: =AVERAGE(I10,H9) -> 12.66875 | J11: 17
C12: =C7+C10 -> 90.4 | D12: 8 | E12: 9 | F12: 10 | G12: 11 | H12: 12 | I12: 10.334375 | J12: 18
C13: 36 | D13: 2.8 | E13: 3.8 | F13: 4.8 | G13: 5.8 | H13: 6.8 | I13: 30.1671875 | J13: 19
C14: 136 | D14: 9 | E14: 10 | F14: 11 | G14: 12 | H14: 13 | I14: 21.08359375 | J14: 20
C15: 58 | D15: 10 | E15: 11 | F15: 12 | G15: 13 | H15: 14 | I15: 13.94179687 | J15: 21
C16: 226.4 | D16: =D9+1 -> 11 | E16: 12 | F16: 13 | G16: 14 | H16: 15 | I16: 13.47089844 | J16: 22
C17: 94 | D17: =1+E17 -> 29 | E17: 28 | F17: 27 | G17: 26 | H17: 25 | I17: =1+J17 -> 24 | J17: 23
